fUSD/lending_fUSD_20251224
["ID","MTS","AMOUNT","RATE_DAILY","PERIOD"]
[399618037,1766549467915,-184.96694399,0.00032958,2]
[399618038,1766549467926,-152.88,0.00032967,2]
[399618039,1766549467937,-250.0,0.00033,30]
[399618040,1766549467947,-166.0,0.00033,60]
[399618041,1766549467957,-551.76,0.00033,30]
[399618042,1766549467967,-1955.36870629,0.00033,2]
[399618043,1766549467978,-1905.16206792,0.00033,2]
[399618044,1766549467988,-216.82605921,0.00033,120]
[399618045,1766549467999,-771.20624982,0.00033,2]
[399618046,1766549468009,-152.67557072,0.00033,2]
[399618047,1766549468019,-177.724196,0.00033,4]
[399618048,1766549468030,-100000.0,0.00033,3]
[399618049,1766549468042,-552.933232,0.00033,14]
[399618050,1766549468053,-155.0,0.00033,14]
[399618051,1766549468063,-534.0,0.00033,14]
[399618052,1766549468074,-150.0,0.00033013,120]
[399618053,1766549468085,-171.61,0.00033072,2]
[399618054,1766549468096,-150.0,0.0003315,120]
[399618055,1766549468108,-534.0,0.00033151,30]
[399618056,1766549468118,-760.23,0.00033165,2]
[399618057,1766549468130,-150.0,0.00033287,120]
[399618058,1766549468142,-1488.9,0.00033318,3]
[399618059,1766549468161,-278.78,0.000334,14]
[399618060,1766549468179,-201.36294907,0.00033424,120]
[399618061,1766549468191,-150.0,0.00033444,7]
[399618062,1766549468203,-150.0,0.00033444,7]
[399618063,1766549468214,-150.0,0.00033444,7]
[399618064,1766549468230,-150.0,0.00033444,7]
[399618065,1766549468252,-150.0,0.00033444,7]
[399618066,1766549468274,-150.0,0.00033444,7]
[399618067,1766549468297,-288.717,0.00033444,7]
[399618068,1766549468311,-373.07297731,0.00033461,2]
[399618069,1766549468321,-621.78829552,0.00033463,2]
[399618070,1766549468333,-1204.62103759,0.000335,2]
[399618071,1766549468345,-237.79,0.000335,14]
[399618072,1766549468356,-1008.0,0.000335,7]
[399618073,1766549468367,-151.33873241,0.00033698,2]
[399618074,1766549468382,-6788.31,0.000337,2]
[399618075,1766549468404,-166.0,0.00034,90]
[399618076,1766549468428,-300.0,0.00034,120]
[399618077,1766549468447,-177.31512131,0.00034,30]
[399618078,1766549468459,-6986.27108984,0.00034,10]
[399618079,1766549468472,-325.14242025,0.00034,2]
[399618080,1766549468484,-300.0,0.00034,2]
[399618081,1766549468498,-100000.0,0.00034,3]
[399618082,1766549468509,-100000.0,0.00034,2]
[399618083,1766549468519,-2000.0,0.00034,2]
[399618084,1766549468529,-151.0,0.00034,31]
[399618085,1766549468541,-151.0,0.00034,31]
[399618086,1766549468552,-151.0,0.00034,31]
[399618087,1766549468563,-151.0,0.00034,31]
[399618088,1766549468574,-151.0,0.00034,31]
[399618089,1766549468587,-151.0,0.00034,31]
[399618090,1766549468597,-151.0,0.00034,31]
[399618091,1766549468607,-151.0,0.00034,31]
[399618092,1766549468618,-151.0,0.00034,31]
[399618093,1766549468628,-158.456026,0.00034,31]
[399618094,1766549468640,-158.456026,0.00034,31]
[399618095,1766549468651,-158.456026,0.00034,31]
[399618096,1766549468660,-158.456026,0.00034,31]
[399618097,1766549468672,-151.0,0.00034,31]
[399618098,1766549468684,-151.0,0.00034,31]
[399618099,1766549468696,-156.454929,0.00034,31]
[399618100,1766549468709,-156.454929,0.00034,31]
[399618101,1766549468721,-156.454929,0.00034,31]
[399618102,1766549468733,-99.62285031,0.00034,31]
[399618103,1766549469782,-564.0,0.00025067,2]
[399618104,1766549469793,-500.0,0.00026941,2]
[399618105,1766549469803,-500.0,0.00026942,2]
[399618106,1766549469813,-500.0,0.00026943,2]
[399618107,1766549469823,-499.9999,0.00026944,2]
[399618108,1766549469833,-564.0,0.00028067,2]
[399618109,1766549469844,-151.0,0.00032877,31]
[399618110,1766549469854,-151.0,0.00032877,31]
[399618111,1766549469864,-197.78159,0.00032877,31]
[399618112,1766549469873,-151.0,0.00032877,31]
[399618113,1766549469883,-56.83207869,0.00034,31]
[399618114,1766549469894,-151.0,0.00034,31]
[399618115,1766549469904,-151.0,0.00034,31]
[399618116,1766549469914,-151.0,0.00034,31]
[399618117,1766549469924,-151.0,0.00034,31]
[399618118,1766549469934,-72.50311519,0.00034,31]
[399618119,1766549469951,-78.49688481,0.00034,31]
[399618120,1766549469962,-231.954265,0.00034,31]
[399618121,1766549469972,-299.238853,0.00034,31]
[399618122,1766549469982,-151.0,0.00034,31]
[399618123,1766549469992,-151.0,0.00034,31]
[399618124,1766549470002,-151.0,0.00034,31]
[399618125,1766549470012,-151.0,0.00034,31]
[399618126,1766549470021,-151.0,0.00034,31]
[399618127,1766549470031,-151.0,0.00034,31]
[399618128,1766549470042,-151.0,0.00034,31]
[399618129,1766549470052,-151.0,0.00034,31]
[399618130,1766549470063,-151.0,0.00034,31]
[399618131,1766549470072,-151.0,0.00034,31]
[399618132,1766549470082,-151.0,0.00034,31]
[399618133,1766549470091,-151.0,0.00034,31]
[399618134,1766549470101,-193.84576,0.00034,31]
[399618135,1766549470112,-286.431963,0.00034,31]
[399618136,1766549470121,-151.0,0.00034,31]
[399618137,1766549470132,-151.0,0.00034,31]
[399618138,1766549470142,-193.84576,0.00034,31]
[399618139,1766549470152,-151.0,0.00034,31]
[399618140,1766549470162,-151.0,0.00034,31]
[399618141,1766549470172,-151.0,0.00034,31]
[399618142,1766549470181,-193.84576,0.00034,31]
[399618143,1766549470191,-151.0,0.00034,31]
[399618144,1766549470201,-151.0,0.00034,31]
[399618145,1766549470212,-193.84576,0.00034,31]
[399618146,1766549470224,-151.0,0.00034,31]
[399618147,1766549470235,-151.0,0.00034,31]
[399618148,1766549470245,-151.0,0.00034,31]
[399618149,1766549470255,-192.86281183,0.00034,31]
[399618150,1766549470267,-151.0,0.00034,31]
[399618151,1766549470277,-151.0,0.00034,31]
[399618152,1766549470287,-216.417854,0.00034,31]
[399618153,1766549470298,-151.0,0.00034,31]
[399618154,1766549470308,-216.417854,0.00034,31]
[399618155,1766549470319,-216.417854,0.00034,31]
[399618156,1766549470329,-282.314916,0.00034,30]
[399618157,1766549470338,-216.417854,0.00034,31]
[399618158,1766549470349,-268.909125,0.00034,31]
[399618159,1766549470359,-282.314916,0.00034,30]
[399618160,1766549470370,-268.909125,0.00034,31]
[399618161,1766549470380,-151.0,0.00034,31]
[399618162,1766549470390,-282.314916,0.00034,30]
[399618163,1766549470399,-268.909125,0.00034,31]
[399618164,1766549470409,-282.314916,0.00034,30]
[399618165,1766549470419,-268.909125,0.00034,31]
[399618166,1766549470429,-154.346984,0.00034,31]
[399618167,1766549470438,-151.0,0.00034,31]
[399618168,1766549470448,-151.0,0.00034,31]
[399618169,1766549470459,-151.0,0.00034,31]
[399618170,1766549470469,-151.0,0.00034,31]
[399618171,1766549470479,-151.0,0.00034,31]
[399618172,1766549470489,-176.246682,0.00034,31]
[399618173,1766549470498,-153.110815,0.00034,31]
[399618174,1766549470509,-168.105229,0.00034,31]
[399618175,1766549470519,-1373.198188,0.00034,31]
[399618176,1766549470530,-470.641713,0.00034,31]
[399618177,1766549470540,-168.105229,0.00034,31]
[399618178,1766549470550,-1373.198188,0.00034,31]
[399618179,1766549470559,-470.641713,0.00034,31]
[399618180,1766549470570,-168.105229,0.00034,31]
[399618181,1766549470579,-1373.198188,0.00034,31]
[399618182,1766549470589,-470.641713,0.00034,31]
[399618183,1766549470599,-151.0,0.00034,31]
[399618184,1766549470609,-151.0,0.00034,31]
[399618185,1766549470620,-1373.198188,0.00034,31]
[399618186,1766549470629,-168.105229,0.00034,31]
[399618187,1766549470639,-470.641713,0.00034,31]
[399618188,1766549470649,-152.47765,0.00034,31]
[399618189,1766549470660,-151.0,0.00034,31]
[399618190,1766549470671,-845.543416,0.00034,31]
[399618191,1766549470681,-320.429553,0.00034,31]
[399618192,1766549470691,-151.0,0.00034,31]
[399618193,1766549470702,-845.543416,0.00034,31]
[399618194,1766549470712,-320.429553,0.00034,31]
[399618195,1766549470722,-151.0,0.00034,31]
[399618196,1766549470732,-151.0,0.00034,31]
[399618197,1766549470743,-845.543416,0.00034,31]
[399618198,1766549470753,-320.429553,0.00034,31]
[399618199,1766549470763,-151.0,0.00034,31]
[399618200,1766549470773,-845.543416,0.00034,31]
[399618201,1766549470783,-151.0,0.00034,31]
[399618202,1766549470793,-151.0,0.00034,31]
[399618203,1766549470803,-320.429553,0.00034,31]
[399618204,1766549470812,-150.0,0.00034067,2]
[399618205,1766549470822,-150.0,0.00034067,2]
[399618206,1766549470832,-150.0,0.00034067,2]
[399618207,1766549470842,-612.0,0.00034067,2]
[399618208,1766549470851,-3458.0,0.00034067,2]
[399618209,1766549470863,-1609.0,0.00034067,2]
[399618210,1766549470873,-1326.0,0.00034067,2]
[399618211,1766549470883,-1263.0,0.00034067,2]
[399618212,1766549470893,-432.0,0.00034067,2]
[399618213,1766549470903,-912.0,0.00034067,2]
[399618214,1766549470913,-751.75798846,0.00034067,2]
[399618281,1766550353112,119.36904536,0.0001299,2]
[399618282,1766550353142,10000.01,0.0001299,2]
[399618283,1766550353171,10000.01,0.0001299,2]
[399618284,1766550353198,634.03102108,0.0001299,2]
[399618288,1766550451108,2000.0,0.00015,2]
[399618291,1766550478922,1000.0,0.00015,2]
[399618295,1766550518260,1421.25020283,0.0001,2]
[399618319,1766550631845,-300.0,0.0001552,2]
[399618321,1766550631855,-1200.0,0.0001552,2]
[399618323,1766550631866,-279.0,0.0001552,2]
[399618325,1766550631875,-15808.15629793,0.00015521,2]
[399618327,1766550631888,-1189.407222,0.00015521,2]
[399618328,1766550631954,-7664.78138007,0.00015521,2]
[399618329,1766550631965,-1000.0,0.00016886,2]
[399618330,1766550631975,-291.25039898,0.000169,2]
[399618331,1766550631985,-905.0506627,0.000169,2]
[399618332,1766550631996,-182.76406687,0.000169,2]
[399618333,1766550632006,-202.20232575,0.000169,2]
[399618334,1766550632016,-742.2058844,0.000169,2]
[399618335,1766550632025,-978.3996,0.000169,2]
[399618336,1766550632035,-905.0506627,0.00016912,2]
[399618337,1766550632045,-905.0506627,0.00016925,2]
[399618338,1766550632056,-905.0506627,0.00016937,2]
[399618339,1766550632066,-905.0506627,0.0001695,2]
[399618340,1766550632076,-151.5346843,0.00016962,2]
[399618341,1766550632086,-905.0506627,0.00016962,2]
[399618342,1766550632095,-248.6557307,0.0001699,2]
[399618343,1766550632105,-1101.69,0.0001699,2]
[399618344,1766550632115,-1101.69,0.0001699,2]
[399618345,1766550632126,-500.0,0.00016999,2]
[399618347,1766550632136,-500.0,0.00016999,2]
[399618348,1766550632146,-500.0,0.00016999,2]
[399618349,1766550632156,-500.0,0.00016999,2]
[399618350,1766550632166,-500.0,0.00016999,2]
[399618351,1766550632176,-500.0,0.00016999,2]
[399618352,1766550632186,-500.0,0.00016999,2]
[399618354,1766550632196,-500.0,0.00016999,2]
[399618355,1766550632206,-500.0,0.00016999,2]
[399618357,1766550632215,-500.0,0.00016999,2]
[399618358,1766550632225,-500.0,0.00016999,2]
[399618359,1766550632236,-500.0,0.00016999,2]
[399618360,1766550632246,-500.0,0.00016999,2]
[399618361,1766550632256,-352.13244151,0.00016999,2]
[399618362,1766550632266,-500.0,0.00016999,2]
[399618363,1766550632276,-500.0,0.00016999,2]
[399618364,1766550632286,-500.0,0.00016999,2]
[399618365,1766550632295,-500.0,0.00016999,2]
[399618366,1766550632311,-500.0,0.00016999,2]
[399618367,1766550632321,-500.0,0.00016999,2]
[399618368,1766550632331,-500.0,0.00016999,2]
[399618369,1766550632341,-500.0,0.00016999,2]
[399618370,1766550632352,-500.0,0.00016999,2]
[399618371,1766550632362,-500.0,0.00016999,2]
[399618372,1766550632372,-500.0,0.00016999,2]
[399618373,1766550632382,-533.21915987,0.00016999,2]
[399618374,1766550632392,-500.0,0.00016999,2]
[399618375,1766550632402,-500.0,0.00016999,2]
[399618376,1766550632412,-500.0,0.00016999,2]
[399618377,1766550632422,-500.0,0.00016999,2]
[399618378,1766550632433,-500.0,0.00016999,2]
[399618379,1766550632443,-500.0,0.00016999,2]
[399618380,1766550632454,-500.0,0.00016999,2]
[399618381,1766550632464,-500.0,0.00016999,2]
[399618382,1766550632473,-500.0,0.00016999,2]
[399618383,1766550632484,-500.0,0.00016999,2]
[399618384,1766550632494,-500.0,0.00016999,2]
[399618385,1766550632504,-500.0,0.00016999,2]
[399618386,1766550632514,-500.0,0.00016999,2]
[399618387,1766550632525,-500.0,0.00016999,2]
[399618388,1766550632541,-500.0,0.00016999,2]
[399618389,1766550632551,-500.0,0.00016999,2]
[399618390,1766550632561,-500.0,0.00016999,2]
[399618391,1766550632571,-500.0,0.00016999,2]
[399618392,1766550632581,-500.0,0.00016999,2]
[399618393,1766550632591,-294.40434612,0.00016999,2]
[399618394,1766550632601,-172.31341389,0.00016999,2]
[399618395,1766550632612,-500.0,0.00016999,2]
[399618396,1766550632622,-392.52007242,0.00016999,2]
[399618397,1766550632632,-500.0,0.00016999,2]
[399618398,1766550632642,-500.0,0.00016999,2]
[399618399,1766550632652,-500.0,0.00016999,2]
[399618400,1766550632662,-500.0,0.00016999,2]
[399618401,1766550632672,-500.0,0.00016999,2]
[399618402,1766550632682,-550.0,0.00016999,2]
[399618403,1766550632692,-500.0,0.00016999,2]
[399618404,1766550632702,-93.51542968,0.00016999,2]
[399618405,1766550632715,-406.48457032,0.00016999,2]
[399618406,1766550632725,-500.0,0.00016999,2]
[399618407,1766550632735,-353.48522902,0.00016999,2]
[399618408,1766550632746,-500.0,0.00016999,2]
[399618409,1766550632756,-353.48522902,0.00016999,2]
[399618410,1766550632766,-500.0,0.00016999,2]
[399618411,1766550632777,-353.48522902,0.00016999,2]
[399618412,1766550632786,-500.0,0.00016999,2]
[399618413,1766550632796,-353.48522902,0.00016999,2]
[399618414,1766550632805,-294.8897951,0.00016999,2]
[399618415,1766550632823,-205.1102049,0.00016999,2]
[399618416,1766550632834,-353.48522902,0.00016999,2]
[399618417,1766550632843,-265.35026479,0.00016999,2]
[399618418,1766550632856,-234.64973521,0.00016999,2]
[399618419,1766550632866,-179.21226749,0.00016999,2]
[399618420,1766550632878,-174.27296153,0.00016999,2]
[399618421,1766550632887,-476.75634925,0.00016999,2]
[399618422,1766550632899,-23.24365075,0.00016999,2]
[399618423,1766550632909,-353.48522902,0.00016999,2]
[399618424,1766550632920,-500.0,0.00016999,2]
[399618425,1766550632930,-353.48522902,0.00016999,2]
[399618426,1766550632941,-250.0,0.00017,2]
[399618427,1766550632951,-1592.54205206,0.00017,2]
[399618429,1766550638028,-588.35815957,0.00017,2]
[399618430,1766550638040,-1487.85982699,0.00017,2]
[399618597,1766550640284,-316.49701509,0.00017,2]
[399618599,1766550640297,-631280.99188882,0.00017,2]
[399618603,1766550640340,-97367.08443756,0.00017,2]
[399618682,1766550645989,-3643.54772829,0.000169,2]
[399618683,1766550645999,-4402.37009898,0.00017,2]
[399618684,1766550646011,-25619.92731314,0.00017,2]
[399618685,1766550646153,-310.546,0.00017,2]
[399618686,1766550646267,-11823.78444351,0.00017,2]
[399618687,1766550646280,-7027.84439078,0.00017,2]
[399618688,1766550646292,-5898.561345,0.00017,2]
[399618689,1766550646305,-2270.88977305,0.00017,2]
[399618690,1766550646322,-581.45672485,0.00017,2]
[399618691,1766550646334,-1963.0,0.00017,2]
[399618703,1766550909680,758.9,0.00013699,2]
[399618729,1766551134455,1625.26,8.099e-05,2]
[399618730,1766551134642,1625.26,8.526e-05,2]
[399618731,1766551134851,935.30877609,8.952e-05,2]
[399618732,1766551134875,689.95122391,8.952e-05,2]
[399618733,1766551135061,1625.26,9.378e-05,2]
[399618734,1766551135263,1625.26,9.804e-05,2]
[399618735,1766551135468,1625.26,0.00010231,2]
[399618736,1766551135673,1625.26,0.00010657,2]
[399618737,1766551135860,1625.26,0.00011083,2]
[399618738,1766551136170,1183.75877609,0.0001151,2]
[399618739,1766551136195,441.50122391,0.0001151,2]
[399618740,1766551136374,1625.26,0.00011936,2]
[399618741,1766551136578,1625.26,0.00012362,2]
[399618742,1766551136801,1625.26,0.00012788,2]
[399618743,1766551137063,1625.26,0.00013215,2]
[399618744,1766551137222,1625.26,0.00013641,2]
[399618745,1766551137436,1432.20877609,0.00014067,2]
[399618746,1766551137910,193.05122391,0.00014067,2]
[399618747,1766551137948,1625.26,0.00014493,2]
[399618748,1766551137982,1625.26,0.0001492,2]
[399618762,1766551280420,166.66,0.00015017,2]
[399618764,1766551765141,-500.0,0.00015173,2]
[399618765,1766551765162,-500.0,0.00015173,2]
[399618766,1766551765183,-300.0,0.00015173,2]
[399618767,1766551765205,-129.80233828,0.00015173,2]
[399618772,1766551832077,-120.19766172,0.00015173,2]
[399618773,1766551832088,-300.0,0.00015173,2]
[399618774,1766551832098,-300.0,0.00015219,2]
[399618775,1766551832108,-1200.0,0.00015287,2]
[399618776,1766551832118,-300.0,0.00015287,2]
[399618777,1766551832131,-1200.0,0.00015287,2]
[399618778,1766551832141,-300.0,0.00015287,2]
[399618779,1766551832151,-150.00000001,0.00015288,2]
[399618780,1766551832161,-150.0,0.00015288,2]
[399618781,1766551832179,-150.0,0.00015288,2]
[399618782,1766551832189,-153.48620936,0.00015288,2]
[399618783,1766551832199,-150.0,0.00015288,2]
[399618784,1766551832209,-150.0,0.00015288,2]
[399618785,1766551832219,-150.0,0.00015288,2]
[399618786,1766551832228,-151.59672162,0.00015288,2]
[399618787,1766551832239,-150.0,0.00015288,2]
[399618788,1766551832249,-150.0,0.00015288,2]
[399618789,1766551832259,-166.66,0.00015333,2]
[399618790,1766551832268,-1625.26,0.00015346,2]
[399618791,1766551832278,-200.0,0.00015523,2]
[399618792,1766551832288,-166.66,0.00015649,2]
[399618793,1766551832298,-1000.0,0.00015721,2]
[399618795,1766551832308,-452.82457792,0.00015721,2]
[399618797,1766551832318,-1625.26,0.00015772,2]
[399618798,1766551832327,-166.66,0.00015966,2]
[399618799,1766551832337,-1625.26,0.00016199,2]
[399618800,1766551832347,-500.0,0.00016268,2]
[399618801,1766551832358,-166.66,0.00016282,2]
[399618802,1766551832368,-6932.02,0.00016438,2]
[399618803,1766551832378,-151.0,0.00016594,2]
[399618804,1766551832387,-151.0,0.00016596,2]
[399618806,1766551832397,-166.66,0.00016598,2]
[399618807,1766551832407,-151.0,0.000166,2]
[399618808,1766551832417,-151.0,0.0001661,2]
[399618809,1766551832427,-550.0,0.00016689,2]
[399618810,1766551832436,-1438.8540389,0.0001669,2]
[399618811,1766551832446,-195.0,0.0001669,2]
[399618812,1766551832457,-250.0,0.0001669,2]
[399618813,1766551832467,-600.0,0.0001669,2]
[399618814,1766551832477,-300.0,0.0001669,2]
[399618815,1766551832487,-250.0,0.0001669,2]
[399618816,1766551832498,-300.0,0.0001669,2]
[399618817,1766551832507,-195.0,0.0001669,2]
[399618818,1766551832517,-163.85,0.000167,2]
[399618819,1766551832527,-12319.0513,0.000167,2]
[399618820,1766551832537,-9418.00935874,0.00016718,2]
[399618821,1766551832550,-4228.68370484,0.00016719,2]
[399618822,1766551832563,-1680.0,0.00016726,2]
[399618823,1766551832580,-420.0,0.00016726,2]
[399618824,1766551832596,-420.0,0.00016726,2]
[399618825,1766551832610,-492.831,0.00016731,2]
[399618826,1766551832623,-2141.79505493,0.00016738,2]
[399618827,1766551832638,-1713.16272951,0.00016738,2]
[399618828,1766551832655,-1767.34463958,0.00016738,2]
[399618829,1766551832672,-518.0,0.00016738,2]
[399618830,1766551832688,-322.59321388,0.00016738,2]
[399618831,1766551832709,-1442.1698,0.00016738,2]
[399618832,1766551832726,-1512.94392081,0.00016738,2]
[399618833,1766551832740,-4228.68370481,0.00016739,2]
[399618834,1766551832753,-3366.80356113,0.00016758,2]
[399618835,1766551832769,-391.62963118,0.00016758,2]
[399618836,1766551832784,-5659.5761664,0.00016758,2]
[399618837,1766551832795,-4228.68370481,0.00016759,2]
[399618838,1766551832808,-1479.05906387,0.00016779,2]
[399618839,1766551832824,-731.01688365,0.00016779,2]
[399618840,1766551832844,-1618.14212,0.00016779,2]
[399618841,1766551832874,-1190.51079332,0.00016779,2]
[399618842,1766551832891,-906.65623098,0.00016779,2]
[399618843,1766551832909,-3492.62426689,0.00016779,2]
[399618844,1766551832922,-4228.68370481,0.00016779,2]
[399618845,1766551832936,-1739.81665688,0.00016799,2]
[399618846,1766551832951,-260.03248731,0.00016799,2]
[399618847,1766551838146,-7418.16021452,0.00016799,2]
[399618848,1766551838159,-624.7640507,0.00016799,2]
[399618849,1766551838172,-199.37826068,0.00016799,2]
[399618850,1766551838184,-500.0,0.00016799,2]
[399618851,1766551838196,-500.0,0.00016799,2]
[399618852,1766551838209,-500.0,0.00016799,2]
[399618853,1766551838222,-500.0,0.00016799,2]
[399618854,1766551838234,-258.32191599,0.00016799,2]
[399618855,1766551838247,-500.0,0.00016799,2]
[399618856,1766551838260,-353.48522902,0.00016799,2]
[399618857,1766551838272,-500.0,0.00016799,2]
[399618858,1766551838285,-353.48522902,0.00016799,2]
[399618859,1766551838298,-500.0,0.00016799,2]
[399618860,1766551838310,-353.48522902,0.00016799,2]
[399618861,1766551838323,-500.0,0.00016799,2]
[399618862,1766551838336,-353.48522902,0.00016799,2]
[399618863,1766551838349,-500.0,0.00016799,2]
[399618864,1766551838361,-353.48522902,0.00016799,2]
[399618866,1766551838373,-500.0,0.00016799,2]
[399618868,1766551838386,-353.48522902,0.00016799,2]
[399618871,1766551838400,-500.0,0.00016799,2]
[399618873,1766551838412,-353.48522902,0.00016799,2]
[399618875,1766551838425,-500.0,0.00016799,2]
[399618877,1766551838437,-351.6036794,0.00016799,2]
[399618880,1766551838450,-500.0,0.00016799,2]
[399618882,1766551838463,-351.6036794,0.00016799,2]
[399618884,1766551838475,-500.0,0.00016799,2]
[399618886,1766551838488,-351.6036794,0.00016799,2]
[399618889,1766551838501,-500.0,0.00016799,2]
[399618891,1766551838513,-351.6036794,0.00016799,2]
[399618893,1766551838526,-351.6036794,0.00016799,2]
[399618895,1766551838537,-500.0,0.00016799,2]
[399618898,1766551838550,-500.0,0.00016799,2]
[399618900,1766551838562,-351.6036794,0.00016799,2]
[399618902,1766551838575,-500.0,0.00016799,2]
[399618904,1766551838587,-351.6036794,0.00016799,2]
[399618907,1766551838600,-500.0,0.00016799,2]
[399618909,1766551838612,-351.6036794,0.00016799,2]
[399618911,1766551838625,-500.0,0.00016799,2]
[399618914,1766551838638,-351.6036794,0.00016799,2]
[399618916,1766551838651,-351.6036794,0.00016799,2]
[399618918,1766551838663,-500.0,0.00016799,2]
[399618920,1766551838675,-500.0,0.00016799,2]
[399618922,1766551838687,-351.6036794,0.00016799,2]
[399618924,1766551838700,-500.0,0.00016799,2]
[399618927,1766551838715,-351.6036794,0.00016799,2]
[399618929,1766551838727,-500.0,0.00016799,2]
[399618931,1766551838739,-351.6036794,0.00016799,2]
[399618933,1766551838750,-500.0,0.00016799,2]
[399618935,1766551838762,-351.6036794,0.00016799,2]
[399618938,1766551838775,-500.0,0.00016799,2]
[399618940,1766551838787,-351.6036794,0.00016799,2]
[399618942,1766551838798,-500.0,0.00016799,2]
[399618944,1766551838810,-351.6036794,0.00016799,2]
[399618947,1766551838823,-500.0,0.00016799,2]
[399618949,1766551838835,-351.6036794,0.00016799,2]
[399618951,1766551838849,-221.25,0.00016799,2]
[399618952,1766551838861,-500.0,0.00016799,2]
[399618954,1766551838874,-351.6036794,0.00016799,2]
[399618955,1766551838888,-4228.68370481,0.00016799,2]
[399618956,1766551838900,-119562.53250713,0.000168,2]
[399618957,1766551838921,-365.46686821,0.000168,2]
[399618958,1766551838941,-32633.9999999,0.000168,2]
[399618959,1766551838955,-542.46609112,0.000168,2]
[399618960,1766551838973,-7772.52638342,0.000168,2]
[399618961,1766551838987,-3662.85766058,0.000168,2]
[399618967,1766551840488,-258.39013124,0.000168,2]
[399618968,1766551840513,-2335.93824332,0.000168,2]
[399618969,1766551840526,-2665.59789759,0.000168,2]
[399618970,1766551840545,-830200.22421749,0.000168,2]
[399618971,1766551840557,-1680.0,0.0001681,2]
[399618972,1766551840568,-9418.00935871,0.00016819,2]
[399618973,1766551840580,-4228.68370481,0.0001682,2]
[399618975,1766551840592,-9418.00935871,0.00016839,2]
[399618977,1766551840602,-9418.00935871,0.0001686,2]
[399618979,1766551840614,-9418.00935871,0.0001688,2]
[399618980,1766551840625,-1000.0,0.000169,2]
[399618981,1766551840636,-166.42736222,0.000169,2]
[399618982,1766551840648,-194.16693266,0.000169,2]
[399618983,1766551840659,-1011.01162875,0.000169,2]
[399618984,1766551840671,-195.67573592,0.000169,2]
[399618985,1766551840682,-9418.00935871,0.000169,2]
[399618986,1766551840694,-865.90686512,0.000169,2]
[399618987,1766551840705,-1204.82,0.00016922,2]
[399618988,1766551840716,-1194.93,0.00016922,2]
[399618989,1766551840727,-2414.82322603,0.00016948,2]
[399618990,1766551840738,-1000.0,0.00016967,2]
[399618991,1766551840749,-500.0,0.00016973,2]
[399618992,1766551840759,-150.0,0.00016973,2]
[399618993,1766551840770,-150.0,0.00016986,2]
[399618994,1766551840781,-150.18777024,0.0001699,2]
[399618995,1766551840792,-150.18777024,0.0001699,2]
[399618996,1766551840804,-150.18777024,0.0001699,2]
[399618997,1766551840815,-500.0,0.00016999,2]
[399618998,1766551840826,-500.0,0.00016999,2]
[399618999,1766551840837,-500.0,0.00016999,2]
[399619000,1766551840854,-500.0,0.00016999,2]
[399619001,1766551840866,-500.0,0.00016999,2]
[399619002,1766551840878,-500.0,0.00016999,2]
[399619003,1766551840891,-500.0,0.00016999,2]